[Event "NED-ch U14 Youth 2019"]
[Site "Assen"]
[Date "2019.05.01"]
[Round "5.2"]
[White "Bleeker, Kasper"]
[Black "Brandsma, Romayn"]
[Result "0-1"]
[ECO "C45"]
[WhiteElo "1932"]
[BlackElo "1958"]
[Annotator "NA"]
[PlyCount "148"]
[EventDate "2019.04.28"]
[EventType "swiss"]
[EventCountry "NED"]
[SourceTitle "playchess.com"]
[Source "ChessBase"]
[SourceQuality "1"]
[TimeControl "5400+30"]

1. e4 {[%emt 0:00:00]} e5 {[%emt 0:00:00]} 2. Nf3 {[%emt 0:00:00]} Nc6 {[%emt 0:00:00]} 3. d4 {[%emt 0:00:00]} exd4 {[%emt 0:00:00]} 4. Nxd4 {[%emt 0:00:00]} Nf6 {[%emt 0:00:01]} 5. Nxc6 {[%emt 0:00:00]} bxc6 {[%emt 0:00:04]} 6. e5 {[%emt 0:00:00]} Qe7 {[%emt 0:00:16]} 7. Qe2 {[%emt 0:00:00]} Nd5 {[%emt 0:00:10]} 8. c4 {[%emt 0:00:00]} Ba6 {[%emt 0:00:07]} 9. b3 {[%emt 0:00:07]} g6 {[%emt 0:00:22]} 10. g3 {[%emt 0:00:30]} Bg7 {[%emt 0:00:11]} 11. Bb2 {[%emt 0:00:04]} O-O {[%emt 0:00:08]} 12. Bg2 {[%emt 0:00:06]} Rae8 {[%emt 0:00:34]} 13. O-O {[%emt 0:00:51]} Bxe5 {[%emt 0:00:15]} 14. Bxe5 {[%emt 0:00:09]} Qxe5 {[%emt 0:00:05]} 15. Qxe5 {[%emt 0:00:04]} Rxe5 {[%emt 0:00:05]} 16. cxd5 {[%emt 0:00:18]} Bxf1 {[%emt 0:00:04]} 17. Kxf1 {[%emt 0:00:07]} cxd5 {[%emt 0:00:08]} 18. f4 {[%emt 0:00:13]} Re3 {[%emt 0:04:47]} 19. Bxd5 {[%emt 0:06:22]} Rfe8 {[%emt 0:01:57]} 20. Na3 {[%emt 0:11:45]} Re2 {[%emt 0:05:52]} 21. h4 {[%emt 0:04:03]} Rd2 {[%emt 0:04:40]} 22. Bh1 {[%emt 0:17:58]} Ree2 {[%emt 0:02:57]} 23. Nb5 {[%emt 0:02:33]} c6 {[%emt 0:14:24]} 24. Nc3 {[%emt 0:04:01]} Rf2+ {[%emt 0:00:50]} 25. Kg1 {[%emt 0:00:48]} Kg7 {[%emt 0:00:47]} 26. Re1 {[%emt 0:12:46]} d5 {[%emt 0:04:42]} 27. a4 {[%emt 0:13:24]} Rc2 {[%emt 0:02:16]} 28. Nb1 {[%emt 0:04:06]} Rfe2 {[%emt 0:03:00]} 29. Rf1 {[%emt 0:09:27]} d4 {[%emt 0:03:23]} 30. Rd1 {[%emt 0:13:02]} Re3 {[%emt 0:01:08]} 31. Kf1 {[%emt 0:01:30]} Rxg3 {[%emt 0:02:00]} 32. Rxd4 {[%emt 0:00:43]} Rc1+ {[%emt 0:00:49]} 33. Kf2 {[%emt 0:00:01]} Rxb3 {[%emt 0:01:14]} 34. Nd2 {[%emt 0:00:05]} Rb2 {[%emt 0:01:26]} 35. Be4 {[%emt 0:00:23]} c5 {[%emt 0:00:23]} 36. Rd7 {[%emt 0:00:38]} c4 {[%emt 0:00:17]} 37. Ke3 {[%emt 0:00:42]} Re1+ {[%emt 0:00:38]} 38. Kf3 {[%emt 0:00:03]} c3 {[%emt 0:00:47]} 39. Nb1 {[%emt 0:02:01]} c2 {[%emt 0:00:36]} 40. Bxc2 {[%emt 0:00:14]} Rxc2 {[%emt 0:00:12]} 41. Nd2 {[%emt 0:00:12]} Rh1 {[%emt 0:01:35]} 42. Ne4 {[%emt 0:00:20]} Rc4 {[%emt 0:01:17]} 43. Ng5 {[%emt 0:01:16]} Rf1+ {[%emt 0:06:42]} 44. Kg3 {[%emt 0:00:02]} Rg1+ {[%emt 0:00:20]} 45. Kf2 {[%emt 0:00:25]} Rxg5 {[%emt 0:00:06]} 46. fxg5 {[%emt 0:00:23]} Rxa4 {[%emt 0:00:10]} 47. Kf3 {[%emt 0:00:17]} Ra1 {[%emt 0:01:04]} 48. Kg4 {[%emt 0:00:19]} a5 {[%emt 0:00:23]} 49. Ra7 {[%emt 0:00:30]} a4 {[%emt 0:00:27]} 50. Kg3 {[%emt 0:00:21]} a3 {[%emt 0:00:39]} 51. Kh3 {[%emt 0:00:15]} a2 {[%emt 0:00:19]} 52. Kg2 {[%emt 0:00:10]} h6 {[%emt 0:01:18]} 53. Kh2 {[%emt 0:00:03]} hxg5 {[%emt 0:00:21]} 54. hxg5 {[%emt 0:00:02]} Kf8 {[%emt 0:00:26]} 55. Kg2 {[%emt 0:00:01]} Rb1 {[%emt 0:00:20]} 56. Rxa2 {[%emt 0:00:17]} Rb5 {[%emt 0:00:06]} 57. Kf3 {[%emt 0:00:48]} Rxg5 {[%emt 0:00:18]} 58. Kf4 {[%emt 0:00:05]} Rf5+ {[%emt 0:00:29]} 59. Kg4 {[%emt 0:00:02]} Kg7 {[%emt 0:00:32]} 60. Ra1 {[%emt 0:00:32]} Rb5 {[%emt 0:00:50]} 61. Ra4 {[%emt 0:00:34]} Kh6 {[%emt 0:01:42]} 62. Kh4 {[%emt 0:03:23]} g5+ {[%emt 0:00:22]} 63. Kg4 {[%emt 0:00:08]} f5+ {[%emt 0:00:13]} 64. Kg3 {[%emt 0:00:07]} Rb3+ {[%emt 0:00:13]} 65. Kg2 {[%emt 0:00:08]} Kh5 {[%emt 0:00:22]} 66. Ra8 {[%emt 0:00:33]} Kg4 {[%emt 0:00:27]} 67. Ra2 {[%emt 0:00:09]} Kh4 {[%emt 0:01:10]} 68. Rf2 {[%emt 0:01:23]} f4 {[%emt 0:01:42]} 69. Rf1 {[%emt 0:00:37]} f3+ {[%emt 0:00:15]} 70. Kf2 {[%emt 0:01:16]} Kg4 {[%emt 0:00:46]} 71. Rc1 {[%emt 0:01:15]} Rb2+ {[%emt 0:00:57]} 72. Kf1 {[%emt 0:00:22]} Kg3 {[%emt 0:00:27]} 73. Kg1 {[%emt 0:01:11]} Re2 {[%emt 0:01:09]} 74. Kh1 {[%emt 0:00:00]} Rh2+ {[%emt 0:37:58]} 0-1

[Event "NED-ch U14 Youth 2019"]
[Site "Assen"]
[Date "2019.05.01"]
[Round "5.3"]
[White "Catalan, Ciro"]
[Black "Yeh, Timo"]
[Result "0-1"]
[ECO "E04"]
[WhiteElo "1599"]
[BlackElo "1783"]
[Annotator "NA"]
[PlyCount "112"]
[EventDate "2019.04.28"]
[EventType "swiss"]
[EventCountry "NED"]
[SourceTitle "playchess.com"]
[Source "ChessBase"]
[SourceQuality "1"]
[TimeControl "5400+30"]

1. d4 {[%emt 0:00:00]} d5 {[%emt 0:00:00]} 2. c4 {[%emt 0:00:00]} e6 {[%emt 0:00:00]} 3. Nf3 {[%emt 0:00:00]} Nf6 {[%emt 0:00:00]} 4. g3 {[%emt 0:00:00]} dxc4 {[%emt 0:00:00]} 5. Bg2 {[%emt 0:00:00]} Bd7 {[%emt 0:00:00]} 6. Ne5 {[%emt 0:01:36]} Bc6 {[%emt 0:00:00]} 7. Nxc6 {[%emt 0:02:40]} Nxc6 {[%emt 0:00:00]} 8. Qa4 {[%emt 0:00:17]} Qd7 {[%emt 0:00:29]} 9. Qxc4 {[%emt 0:18:11]} Nd5 {[%emt 0:00:40]} 10. O-O {[%emt 0:05:39]} Be7 {[%emt 0:01:14]} 11. e3 {[%emt 0:08:32]} O-O {[%emt 0:00:33]} 12. Nc3 {[%emt 0:01:02]} Nb6 {[%emt 0:00:25]} 13. Qe2 {[%emt 0:00:41]} Nd5 {[%emt 0:06:29]} 14. Rd1 {[%emt 0:08:54]} Rfd8 {[%emt 0:01:44]} 15. e4 {[%emt 0:07:41]} Nxc3 {[%emt 0:03:21]} 16. bxc3 {[%emt 0:00:14]} Na5 {[%emt 0:00:12]} 17. Rb1 {[%emt 0:06:19]} e5 {[%emt 0:01:28]} 18. Rb5 {[%emt 0:09:25]} Nc6 {[%emt 0:02:24]} 19. Rd5 {[%emt 0:01:36]} Qe6 {[%emt 0:01:20]} 20. dxe5 {[%emt 0:27:13]} Nxe5 {[%emt 0:01:30]} 21. Rxd8+ {[%emt 0:00:00]} Rxd8 {[%emt 0:00:06]} 22. Rxd8+ {[%emt 0:00:00]} Bxd8 {[%emt 0:00:07]} 23. Qb5 {[%emt 0:00:00]} b6 {[%emt 0:03:09]} 24. Bf4 {[%emt 0:00:00]} Ng6 {[%emt 0:00:43]} 25. Be3 {[%emt 0:00:00]} c5 {[%emt 0:01:27]} 26. Qa4 {[%emt 0:00:00]} a5 {[%emt 0:02:42]} 27. Bh3 {[%emt 0:00:00]} Qe7 {[%emt 0:01:38]} 28. f4 {[%emt 0:00:00]} h6 {[%emt 0:01:14]} 29. Qc6 {[%emt 0:00:00]} Nf8 {[%emt 0:03:39]} 30. Kg2 {[%emt 0:00:00]} Nh7 {[%emt 0:02:29]} 31. Kf3 {[%emt 0:01:37]} Qf6 {[%emt 0:03:04]} 32. Qe8+ {[%emt 0:01:02]} Nf8 {[%emt 0:00:08]} 33. Bf5 {[%emt 0:00:41]} g6 {[%emt 0:01:23]} 34. Bh3 {[%emt 0:00:22]} Qd6 {[%emt 0:01:48]} 35. f5 {[%emt 0:01:12]} g5 {[%emt 0:02:43]} 36. Ke2 {[%emt 0:01:37]} Bf6 {[%emt 0:00:25]} 37. c4 {[%emt 0:01:09]} Bd4 {[%emt 0:01:20]} 38. Bxd4 {[%emt 0:00:36]} Qxd4 {[%emt 0:00:02]} 39. e5 {[%emt 0:00:29]} Qe4+ {[%emt 0:01:43]} 40. Kd2 {[%emt 0:00:20]} g4 {[%emt 0:01:20]} 41. e6 {[%emt 0:00:37]} fxe6 {[%emt 0:01:48]} 42. fxe6 {[%emt 0:00:15]} Qd4+ {[%emt 0:01:43]} 43. Ke1 {[%emt 0:00:42]} Qe3+ {[%emt 0:00:06]} 44. Kf1 {[%emt 0:00:38]} Qf3+ {[%emt 0:00:05]} 45. Kg1 {[%emt 0:00:24]} gxh3 {[%emt 0:00:26]} 46. Qf7+ {[%emt 0:00:25]} Qxf7 {[%emt 0:00:05]} 47. exf7+ {[%emt 0:00:05]} Kxf7 {[%emt 0:00:03]} 48. Kf2 {[%emt 0:00:14]} Kf6 {[%emt 0:00:11]} 49. g4 {[%emt 0:00:06]} Ng6 {[%emt 0:00:18]} 50. Kg3 {[%emt 0:00:08]} Ne5 {[%emt 0:00:03]} 51. Kxh3 {[%emt 0:00:08]} Nxc4 {[%emt 0:00:06]} 52. Kg3 {[%emt 0:00:07]} Ne5 {[%emt 0:00:07]} 53. Kf4 {[%emt 0:00:11]} c4 {[%emt 0:00:03]} 54. h4 {[%emt 0:00:34]} Ng6+ {[%emt 0:00:05]} 55. Ke4 {[%emt 0:00:15]} Nxh4 {[%emt 0:00:17]} 56. Kd4 {[%emt 0:00:06]} b5 {[%emt 0:00:10]} 0-1

[Event "NED-ch U14 Youth 2019"]
[Site "Assen"]
[Date "2019.05.01"]
[Round "5.4"]
[White "Van der Hagen, Loek"]
[Black "Roebers, Eline"]
[Result "0-1"]
[ECO "B00"]
[WhiteElo "1931"]
[BlackElo "2077"]
[Annotator "NA"]
[PlyCount "128"]
[EventDate "2019.04.28"]
[EventType "swiss"]
[EventCountry "NED"]
[SourceTitle "playchess.com"]
[Source "ChessBase"]
[SourceQuality "1"]
[TimeControl "5400+30"]

1. e4 {[%emt 0:00:00]} b6 {[%emt 0:00:00]} 2. d4 {[%emt 0:00:03]} Bb7 {[%emt 0:00:00]} 3. Nc3 {[%emt 0:00:17]} e6 {[%emt 0:00:24]} 4. Bd3 {[%emt 0:01:03]} Bb4 {[%emt 0:01:11]} 5. Nge2 {[%emt 0:00:52]} Nf6 {[%emt 0:01:42]} 6. Bd2 {[%emt 0:00:21]} d5 {[%emt 0:02:14]} 7. e5 {[%emt 0:04:17]} Nfd7 {[%emt 0:02:13]} 8. Nb1 {[%emt 0:01:26]} Be7 {[%emt 0:02:52]} 9. O-O {[%emt 0:02:03]} c5 {[%emt 0:02:20]} 10. c3 {[%emt 0:00:25]} Nc6 {[%emt 0:03:49]} 11. Be3 {[%emt 0:04:30]} cxd4 {[%emt 0:05:49]} 12. cxd4 {[%emt 0:00:52]} Nb4 {[%emt 0:00:56]} 13. Nbc3 {[%emt 0:05:28]} Nxd3 {[%emt 0:01:23]} 14. Qxd3 {[%emt 0:00:05]} O-O {[%emt 0:02:09]} 15. f4 {[%emt 0:03:38]} f5 {[%emt 0:05:46]} 16. Rf3 {[%emt 0:02:05]} Nb8 {[%emt 0:07:38]} 17. Rh3 {[%emt 0:08:49]} Ba6 {[%emt 0:01:44]} 18. Qb1 {[%emt 0:00:37]} h6 {[%emt 0:06:52]} 19. Kh1 {[%emt 0:02:33]} Qe8 {[%emt 0:12:57]} 20. Qg1 {[%emt 0:02:56]} h5 {[%emt 0:02:55]} 21. Ng3 {[%emt 0:05:39]} g6 {[%emt 0:01:25]} 22. Qd1 {[%emt 0:07:26]} Nc6 {[%emt 0:03:46]} 23. a3 {[%emt 0:09:34]} Na5 {[%emt 0:01:35]} 24. Qf3 {[%emt 0:01:21]} Kg7 {[%emt 0:05:59]} 25. Rg1 {[%emt 0:09:38]} Rh8 {[%emt 0:03:12]} 26. Nf1 {[%emt 0:03:09]} Nc4 {[%emt 0:02:07]} 27. Bc1 {[%emt 0:00:30]} Rc8 {[%emt 0:01:50]} 28. Nd2 {[%emt 0:03:59]} Nxd2 {[%emt 0:06:59]} 29. Bxd2 {[%emt 0:00:09]} Bc4 {[%emt 0:01:46]} 30. Qf2 {[%emt 0:03:36]} a5 {[%emt 0:02:17]} 31. Rc1 {[%emt 0:02:40]} b5 {[%emt 0:04:30]} 32. Nd1 {[%emt 0:01:49]} b4 {[%emt 0:01:35]} 33. b3 {[%emt 0:02:46]} Ba6 {[%emt 0:00:39]} 34. axb4 {[%emt 0:01:19]} Rxc1 {[%emt 0:00:52]} 35. Bxc1 {[%emt 0:00:03]} axb4 {[%emt 0:00:08]} 36. Qd2 {[%emt 0:02:03]} Qb5 {[%emt 0:00:33]} 37. Rf3 {[%emt 0:00:24]} Rc8 {[%emt 0:00:41]} 38. Rf2 {[%emt 0:01:08]} Qd3 {[%emt 0:00:45]} 39. Rf3 {[%emt 0:05:32]} Qxd2 {[%emt 0:00:23]} 40. Bxd2 {[%emt 0:00:05]} Be2 {[%emt 0:00:04]} 41. Ne3 {[%emt 0:01:25]} Bxf3 {[%emt 0:00:10]} 42. gxf3 {[%emt 0:00:01]} Ra8 {[%emt 0:00:23]} 43. Nc2 {[%emt 0:00:43]} Rb8 {[%emt 0:01:43]} 44. Kg2 {[%emt 0:00:10]} Kf7 {[%emt 0:00:04]} 45. Kf2 {[%emt 0:00:12]} Rc8 {[%emt 0:01:33]} 46. Nxb4 {[%emt 0:00:51]} Bxb4 {[%emt 0:00:07]} 47. Bxb4 {[%emt 0:00:03]} Rb8 {[%emt 0:00:04]} 48. Bc5 {[%emt 0:00:25]} Rxb3 {[%emt 0:00:05]} 49. Kg3 {[%emt 0:00:15]} Rb2 {[%emt 0:00:47]} 50. h3 {[%emt 0:00:31]} Ke8 {[%emt 0:00:26]} 51. Kh4 {[%emt 0:01:10]} Rg2 {[%emt 0:00:08]} 52. Be7 {[%emt 0:00:50]} Kd7 {[%emt 0:00:04]} 53. Bc5 {[%emt 0:00:16]} Kc6 {[%emt 0:00:15]} 54. Ba3 {[%emt 0:00:48]} Kb5 {[%emt 0:00:09]} 55. Bc5 {[%emt 0:00:07]} Kc4 {[%emt 0:00:04]} 56. Bb6 {[%emt 0:00:22]} Kd3 {[%emt 0:00:06]} 57. Bc5 {[%emt 0:01:04]} Ke3 {[%emt 0:00:10]} 58. Bb4 {[%emt 0:00:07]} Kxf4 {[%emt 0:00:32]} 59. Bd2+ {[%emt 0:00:12]} Kxf3 {[%emt 0:00:07]} 60. Bf4 {[%emt 0:00:35]} Ke4 {[%emt 0:00:11]} 61. Be3 {[%emt 0:00:11]} Rh2 {[%emt 0:02:43]} 62. Bg1 {[%emt 0:00:20]} Rh1 {[%emt 0:00:16]} 63. Bf2 {[%emt 0:00:08]} Kf3 {[%emt 0:00:05]} 64. Bg1 {[%emt 0:00:25]} g5+ {[%emt 0:00:19]} 0-1

[Event "NED-ch U14 Youth 2019"]
[Site "Assen"]
[Date "2019.05.01"]
[Round "5.5"]
[White "Kutchoukov, Daniel"]
[Black "Slagboom, Leandro"]
[Result "1/2-1/2"]
[ECO "B51"]
[WhiteElo "1862"]
[BlackElo "1738"]
[Annotator "NA"]
[PlyCount "77"]
[EventDate "2019.04.28"]
[EventType "swiss"]
[EventCountry "NED"]
[SourceTitle "playchess.com"]
[Source "ChessBase"]
[SourceQuality "1"]
[TimeControl "5400+30"]

1. e4 {[%emt 0:00:00]} c5 {[%emt 0:00:00]} 2. Nf3 {[%emt 0:00:00]} d6 {[%emt 0:00:00]} 3. Bb5+ {[%emt 0:00:00]} Nd7 {[%emt 0:00:00]} 4. O-O {[%emt 0:00:00]} Ngf6 {[%emt 0:00:34]} 5. Re1 {[%emt 0:00:10]} a6 {[%emt 0:00:16]} 6. Bf1 {[%emt 0:00:06]} b6 {[%emt 0:00:39]} 7. d3 {[%emt 0:19:54]} Bb7 {[%emt 0:00:48]} 8. Nc3 {[%emt 0:05:51]} e6 {[%emt 0:01:02]} 9. g3 {[%emt 0:03:52]} Be7 {[%emt 0:00:33]} 10. Bg2 {[%emt 0:00:47]} Qc7 {[%emt 0:00:30]} 11. Nd2 {[%emt 0:05:00]} O-O {[%emt 0:03:23]} 12. f4 {[%emt 0:00:14]} Rfd8 {[%emt 0:02:11]} 13. g4 {[%emt 0:07:25]} b5 {[%emt 0:03:49]} 14. g5 {[%emt 0:02:23]} Ne8 {[%emt 0:00:20]} 15. Qg4 {[%emt 0:08:02]} Nb6 {[%emt 0:03:42]} 16. Re3 {[%emt 0:09:40]} g6 {[%emt 0:06:28]} 17. Rh3 {[%emt 0:03:16]} Ng7 {[%emt 0:01:01]} 18. Nf3 {[%emt 0:13:47]} d5 {[%emt 0:03:04]} 19. Nd2 {[%emt 0:10:03]} d4 {[%emt 0:05:14]} 20. Ne2 {[%emt 0:00:31]} c4 {[%emt 0:10:29]} 21. Ng3 {[%emt 0:08:22]} cxd3 {[%emt 0:04:37]} 22. cxd3 {[%emt 0:00:02]} Nd7 {[%emt 0:08:34]} 23. e5 {[%emt 0:01:28]} Bxg2 {[%emt 0:01:06]} 24. Kxg2 {[%emt 0:00:01]} Nf5 {[%emt 0:00:36]} 25. Nde4 {[%emt 0:01:04]} Qxc1 {[%emt 0:04:30]} 26. Rxc1 {[%emt 0:00:28]} Ne3+ {[%emt 0:00:02]} 27. Kf3 {[%emt 0:00:13]} Nxg4 {[%emt 0:00:33]} 28. Kxg4 {[%emt 0:00:01]} Rac8 {[%emt 0:03:59]} 29. Rg1 {[%emt 0:00:01]} Rc2 {[%emt 0:03:20]} 30. Nf6+ {[%emt 0:01:43]} Bxf6 {[%emt 0:00:56]} 31. gxf6 {[%emt 0:00:07]} Rxb2 {[%emt 0:00:35]} 32. Ne4 {[%emt 0:00:57]} h5+ {[%emt 0:05:29]} 33. Kf3 {[%emt 0:00:26]} Kf8 {[%emt 0:03:40]} 34. Rg5 {[%emt 0:00:34]} Rxa2 {[%emt 0:04:57]} 35. Rgxh5 {[%emt 0:00:23]} gxh5 {[%emt 0:00:19]} 36. Rxh5 {[%emt 0:00:04]} Kg8 {[%emt 0:00:46]} 37. Rg5+ {[%emt 0:01:01]} Kh7 {[%emt 0:20:28]} 38. Rg7+ {[%emt 0:01:04]} Kh6 39. Ng5 {Kh7 Ne4+ Kh8} 1/2-1/2

[Event "NED-ch U14 Youth 2019"]
[Site "Assen"]
[Date "2019.05.01"]
[Round "5.6"]
[White "Boghossian, Wahe"]
[Black "De Winter, Arthur"]
[Result "0-1"]
[ECO "A35"]
[WhiteElo "1820"]
[BlackElo "1661"]
[Annotator "NA"]
[PlyCount "66"]
[EventDate "2019.04.28"]
[EventType "swiss"]
[EventCountry "NED"]
[SourceTitle "playchess.com"]
[Source "ChessBase"]
[SourceQuality "1"]
[TimeControl "5400+30"]

1. Nf3 {[%emt 0:00:00]} Nf6 {[%emt 0:00:00]} 2. d4 {[%emt 0:00:03]} g6 {[%emt 0:00:28]} 3. c4 {[%emt 0:00:59]} Bg7 {[%emt 0:00:08]} 4. Nc3 {[%emt 0:00:38]} O-O {[%emt 0:00:22]} 5. e3 {[%emt 0:00:26]} c5 {[%emt 0:00:45]} 6. Be2 {[%emt 0:01:13]} cxd4 {[%emt 0:00:39]} 7. Nxd4 {[%emt 0:07:49]} Nc6 {[%emt 0:01:50]} 8. O-O {[%emt 0:02:33]} Nxd4 {[%emt 0:01:16]} 9. exd4 {[%emt 0:07:05]} d5 {[%emt 0:00:47]} 10. c5 {[%emt 0:04:10]} b6 {[%emt 0:07:44]} 11. b4 {[%emt 0:19:14]} a5 {[%emt 0:04:55]} 12. Ba3 {[%emt 0:14:50]} Ne4 {[%emt 0:05:24]} 13. Na4 {[%emt 0:06:47]} axb4 {[%emt 0:07:36]} 14. Bxb4 {[%emt 0:00:26]} bxc5 {[%emt 0:05:12]} 15. Nxc5 {[%emt 0:01:25]} Bf5 {[%emt 0:02:04]} 16. Re1 {[%emt 0:04:22]} Nd6 {[%emt 0:09:27]} 17. Bf3 {[%emt 0:04:11]} Nb5 {[%emt 0:03:57]} 18. Nb3 {[%emt 0:02:01]} Re8 {[%emt 0:01:34]} 19. a4 {[%emt 0:04:13]} Nc7 {[%emt 0:03:10]} 20. Ba5 {[%emt 0:02:08]} Qd7 {[%emt 0:02:50]} 21. Rc1 {[%emt 0:09:08]} Ne6 {[%emt 0:05:27]} 22. g4 {[%emt 0:01:36]} Be4 {[%emt 0:00:11]} 23. Be2 {[%emt 0:00:55]} Qxa4 {[%emt 0:14:47]} 24. Ra1 {[%emt 0:00:27]} Qd7 {[%emt 0:00:26]} 25. f3 {[%emt 0:00:31]} Ng5 {[%emt 0:04:32]} 26. Nc5 {[%emt 0:02:29]} Nh3+ {[%emt 0:00:34]} 27. Kf1 {[%emt 0:03:11]} Qd6 {[%emt 0:02:41]} 28. Kg2 {[%emt 0:00:08]} Nf4+ {[%emt 0:00:19]} 29. Kh1 {[%emt 0:00:41]} Nxe2 {[%emt 0:00:20]} 30. Qxe2 {[%emt 0:00:43]} Bxd4 {[%emt 0:00:09]} 31. Nb7 {[%emt 0:00:36]} Qc6 {[%emt 0:00:18]} 32. fxe4 {[%emt 0:00:30]} Bxa1 {[%emt 0:00:14]} 33. Rxa1 {[%emt 0:00:11]} Qxb7 {[%emt 0:00:11]} 0-1

[Event "NED-ch U14 Youth 2019"]
[Site "Assen"]
[Date "2019.05.01"]
[Round "5.7"]
[White "Bartels, Vladimir"]
[Black "Van Kuijk, Vadim"]
[Result "1-0"]
[ECO "C10"]
[WhiteElo "1748"]
[BlackElo "1589"]
[Annotator "NA"]
[PlyCount "79"]
[EventDate "2019.04.28"]
[EventType "swiss"]
[EventCountry "NED"]
[SourceTitle "playchess.com"]
[Source "ChessBase"]
[SourceQuality "1"]
[TimeControl "5400+30"]

1. e4 {[%emt 0:00:00]} c5 {[%emt 0:00:00]} 2. Nc3 {[%emt 0:00:00]} e6 {[%emt 0:00:02]} 3. Nf3 {[%emt 0:00:00]} d5 {[%emt 0:14:19]} 4. exd5 {[%emt 0:04:38]} exd5 {[%emt 0:00:30]} 5. d4 {[%emt 0:00:34]} c4 {[%emt 0:20:46]} 6. Bf4 {[%emt 0:11:35]} Bb4 {[%emt 0:10:29]} 7. Qd2 {[%emt 0:08:13]} Nf6 {[%emt 0:12:45]} 8. Qe3+ {[%emt 0:06:57]} Ne4 {[%emt 0:01:46]} 9. Ng5 {[%emt 0:02:31]} O-O {[%emt 0:13:26]} 10. Ngxe4 {[%emt 0:00:16]} Re8 {[%emt 0:04:52]} 11. Be5 {[%emt 0:34:35]} dxe4 {[%emt 0:08:30]} 12. Bxc4 {[%emt 0:05:28]} Nc6 {[%emt 0:03:58]} 13. O-O-O {[%emt 0:03:20]} Nxe5 {[%emt 0:02:53]} 14. dxe5 {[%emt 0:00:08]} Qc7 {[%emt 0:01:26]} 15. Qd4 {[%emt 0:07:02]} Bxc3 {[%emt 0:01:03]} 16. Qxc3 {[%emt 0:00:50]} Bg4 {[%emt 0:00:37]} 17. f3 {[%emt 0:01:38]} Bf5 {[%emt 0:00:34]} 18. fxe4 {[%emt 0:00:51]} Rac8 {[%emt 0:00:33]} 19. exf5 {[%emt 0:01:04]} Qxc4 {[%emt 0:00:26]} 20. Qxc4 {[%emt 0:00:32]} Rxc4 {[%emt 0:00:10]} 21. Rhe1 {[%emt 0:00:06]} Rc5 {[%emt 0:00:51]} 22. e6 {[%emt 0:00:45]} Rxf5 {[%emt 0:00:30]} 23. e7 {[%emt 0:00:07]} f6 {[%emt 0:00:15]} 24. Re2 {[%emt 0:02:37]} Kf7 {[%emt 0:00:42]} 25. Rd7 {[%emt 0:00:14]} Rb5 {[%emt 0:00:24]} 26. b3 {[%emt 0:00:39]} Rb6 {[%emt 0:00:36]} 27. a4 {[%emt 0:00:54]} a6 {[%emt 0:00:31]} 28. Kb2 {[%emt 0:00:27]} a5 {[%emt 0:00:28]} 29. c3 {[%emt 0:00:34]} Re6 {[%emt 0:00:34]} 30. Rxe6 {[%emt 0:00:08]} Kxe6 {[%emt 0:00:04]} 31. Rxb7 {[%emt 0:00:07]} Rxe7 {[%emt 0:00:38]} 32. Rxe7+ {[%emt 0:00:06]} Kxe7 {[%emt 0:00:03]} 33. b4 {[%emt 0:00:08]} f5 {[%emt 0:00:53]} 34. Kc2 {[%emt 0:01:37]} g5 {[%emt 0:00:39]} 35. Kd3 {[%emt 0:00:15]} h5 {[%emt 0:00:25]} 36. Kd4 {[%emt 0:00:09]} h4 {[%emt 0:00:50]} 37. b5 {[%emt 0:00:26]} g4 {[%emt 0:00:25]} 38. Ke5 {[%emt 0:00:25]} h3 {[%emt 0:00:34]} 39. g3 {[%emt 0:00:11]} f4 {[%emt 0:00:11]} 40. Kxf4 {[%emt 0:09:53]} 1-0

[Event "NED-ch U14 Youth 2019"]
[Site "Assen"]
[Date "2019.05.01"]
[Round "5.8"]
[White "Dekker, Thiemen"]
[Black "Shadrin, Mitia"]
[Result "1-0"]
[ECO "B22"]
[WhiteElo "1521"]
[BlackElo "1692"]
[Annotator "NA"]
[PlyCount "56"]
[EventDate "2019.04.28"]
[EventType "swiss"]
[EventCountry "NED"]
[SourceTitle "playchess.com"]
[Source "ChessBase"]
[SourceQuality "1"]
[TimeControl "5400+30"]

1. e4 {[%emt 0:00:00]} c5 {[%emt 0:00:00]} 2. c3 {[%emt 0:00:00]} Nf6 {[%emt 0:00:00]} 3. e5 {[%emt 0:00:00]} Nd5 {[%emt 0:00:05]} 4. d4 {[%emt 0:00:00]} Nc6 {[%emt 0:14:20]} 5. Nf3 {[%emt 0:00:57]} d6 {[%emt 0:02:21]} 6. c4 {[%emt 0:02:29]} Nb6 {[%emt 0:03:24]} 7. exd6 {[%emt 0:00:39]} Qxd6 {[%emt 0:03:20]} 8. d5 {[%emt 0:01:31]} Ne5 {[%emt 0:05:51]} 9. Bf4 {[%emt 0:08:14]} Nxf3+ {[%emt 0:00:48]} 10. Qxf3 {[%emt 0:00:38]} Qf6 {[%emt 0:00:48]} 11. Nc3 {[%emt 0:04:20]} g5 {[%emt 0:07:02]} 12. Be3 {[%emt 0:02:12]} Qe5 {[%emt 0:04:20]} 13. Qg3 {[%emt 0:07:46]} Qf5 {[%emt 0:00:52]} 14. Qxg5 {[%emt 0:03:55]} Qc2 {[%emt 0:00:53]} 15. Bc1 {[%emt 0:05:42]} h5 {[%emt 0:02:23]} 16. Qe5 {[%emt 0:09:28]} f6 {[%emt 0:03:03]} 17. Qe4 {[%emt 0:00:35]} Bf5 {[%emt 0:04:04]} 18. Qxc2 {[%emt 0:00:21]} Bxc2 {[%emt 0:00:03]} 19. Be3 {[%emt 0:09:21]} Rc8 {[%emt 0:00:27]} 20. Kd2 {[%emt 0:03:17]} Bf5 {[%emt 0:00:09]} 21. b3 {[%emt 0:00:39]} Rg8 {[%emt 0:00:33]} 22. g3 {[%emt 0:01:01]} e6 {[%emt 0:01:29]} 23. dxe6 {[%emt 0:02:33]} Rd8+ {[%emt 0:00:29]} 24. Ke1 {[%emt 0:01:36]} Bxe6 {[%emt 0:01:41]} 25. Rd1 {[%emt 0:01:31]} Rxd1+ {[%emt 0:00:13]} 26. Kxd1 {[%emt 0:00:22]} Kd7 {[%emt 0:01:10]} 27. Bg2 {[%emt 0:00:59]} Kc8 {[%emt 0:00:13]} 28. Ne4 {[%emt 0:02:04]} Nd7 {[%emt 0:00:24]} 1-0